fUST/lending_fUST_20260120
["ID","MTS","AMOUNT","RATE_DAILY","PERIOD"]
[402814698,1768918254393,-1500.0,0.00021946,2]
[402814699,1768918254403,-2000.0,0.00021948,7]
[402814700,1768918254412,-500.0,0.0002196,2]
[402814701,1768918254423,-1410.12,0.00022,2]
[402814702,1768918254432,-172.18436323,0.00022,10]
[402814703,1768918254441,-567.60513434,0.00022,14]
[402814704,1768918254453,-677.12931274,0.00022,20]
[402814705,1768918254462,-1000.0,0.00022,22]
[402814706,1768918254471,-578.8,0.00022,7]
[402814707,1768918254588,-167.89,0.00022,7]
[402814708,1768918254611,-151.0,0.00022,2]
[402814709,1768918254621,-151.0,0.00022,2]
[402814710,1768918254631,-151.0,0.00022,2]
[402814711,1768918254641,-151.0,0.00022,2]
[402814712,1768918254651,-151.0,0.00022,2]
[402814713,1768918254661,-151.0,0.00022,2]
[402814714,1768918254670,-1500.0,0.00022006,2]
[402814715,1768918254680,-600.0,0.0002201,2]
[402814716,1768918254689,-151.0,0.0002201,2]
[402814717,1768918254699,-269.922067,0.0002201,2]
[402814718,1768918254708,-269.922067,0.0002201,2]
[402814719,1768918254717,-269.922067,0.0002201,2]
[402814720,1768918254727,-269.922075,0.0002201,2]
[402814721,1768918254736,-836.146172,0.0002201,2]
[402814722,1768918254745,-836.146172,0.0002201,2]
[402814723,1768918254755,-836.146172,0.0002201,2]
[402814724,1768918254765,-836.146171,0.0002201,2]
[402814725,1768918254775,-277.673685,0.0002201,2]
[402814726,1768918254784,-277.673685,0.0002201,2]
[402814727,1768918254795,-277.673685,0.0002201,2]
[402814728,1768918254805,-277.673686,0.0002201,2]
[402814729,1768918254814,-367.44709276,0.00022021,63]
[402814730,1768918254824,-398.64791907,0.00022021,63]
[402814731,1768918254833,-304.96955809,0.00022021,63]
[402814732,1768918254843,-248.54264881,0.0002203,110]
[402814733,1768918254853,-600.0,0.00022047,2]
[402814734,1768918254863,-600.0,0.00022055,2]
[402814735,1768918254873,-379.14,0.000221,7]
[402814736,1768918254883,-600.0,0.00022105,2]
[402814737,1768918254893,-600.0,0.00022109,2]
[402814738,1768918254903,-500.0,0.00022131,2]
[402814739,1768918254912,-1061.592791,0.00022135,2]
[402814740,1768918254922,-1061.592791,0.00022135,2]
[402814741,1768918254931,-1061.592791,0.00022135,2]
[402814742,1768918254942,-1061.592791,0.00022135,2]
[402814743,1768918254952,-1585.455564,0.00022135,2]
[402814744,1768918254962,-1585.455564,0.00022135,2]
[402814745,1768918254973,-1585.455564,0.00022135,2]
[402814746,1768918254982,-1585.455562,0.00022135,2]
[402814747,1768918254992,-151.0,0.00022135,2]
[402814748,1768918255003,-151.0,0.00022135,2]
[402814749,1768918255013,-398.64791907,0.00022148,71]
[402814750,1768918255023,-304.96955809,0.00022148,71]
[402814751,1768918255034,-600.0,0.00022178,2]
[402814752,1768918255044,-243.29329672,0.0002222,2]
[402814753,1768918255053,-600.0,0.00022228,2]
[402814754,1768918255063,-600.0,0.00022253,2]
[402814755,1768918255072,-367.44709276,0.00022274,79]
[402814756,1768918255082,-304.96955809,0.00022274,79]
[402814757,1768918255091,-398.64791907,0.00022274,79]
[402814758,1768918255100,-600.0,0.00022287,2]
[402814759,1768918255110,-234.0,0.00022301,7]
[402814760,1768918255119,-600.0,0.00022309,2]
[402814761,1768918255128,-602.92061325,0.00022317,2]
[402814762,1768918255138,-500.0,0.00022363,2]
[402814763,1768918255147,-2898.8072169,0.00022376,2]
[402814764,1768918255157,-600.0,0.0002238,2]
[402814765,1768918255166,-1043.40716341,0.00022395,2]
[402814766,1768918255177,-304.96955809,0.000224,86]
[402814767,1768918255187,-398.64791907,0.000224,86]
[402814768,1768918255196,-300.0,0.00022466,2]
[402814769,1768918255205,-200.0,0.00022466,2]
[402814770,1768918255215,-692.55010284,0.00022498,2]
[402814771,1768918255224,-1034.24217857,0.000225,2]
[402814772,1768918255236,-9903.14752856,0.00022508,2]
[402814773,1768918255246,-367.44709276,0.00022527,94]
[402814774,1768918255255,-304.96955809,0.00022527,94]
[402814775,1768918255264,-398.64791907,0.00022527,94]
[402814776,1768918255274,-578.8,0.000226,7]
[402814777,1768918255284,-2000.0,0.00022619,7]
[402814778,1768918255293,-932.254814,0.00022627,2]
[402814779,1768918255303,-932.254814,0.00022627,2]
[402814780,1768918255312,-932.254814,0.00022627,2]
[402814781,1768918255322,-932.254821,0.00022627,2]
[402814782,1768918255331,-304.96955809,0.00022653,102]
[402814783,1768918255341,-398.64791907,0.00022653,102]
[402814784,1768918255350,-214.17893884,0.00022691,110]
[402814785,1768918255360,-280.7918229,0.00022691,110]
[402814786,1768918255369,-176.10392053,0.00022691,110]
[402814787,1768918255379,-187.710619,0.00022692,2]
[402814788,1768918255389,-187.710619,0.00022692,2]
[402814789,1768918255398,-187.710619,0.00022692,2]
[402814790,1768918255407,-187.710616,0.00022692,2]
[402814791,1768918255416,-151.0,0.00022692,2]
[402814792,1768918255425,-151.0,0.00022692,2]
[402814793,1768918255434,-7026.69,0.000227,14]
[402814794,1768918255443,-349.28,0.000227,7]
[402814795,1768918255453,-373.2,0.000227,7]
[402814796,1768918255462,-39601.47,0.000227,2]
[402814797,1768918255471,-151.0,0.000227,2]
[402814798,1768918255481,-151.0,0.000227,2]
[402814799,1768918255490,-151.0,0.000227,2]
[402814800,1768918255499,-151.0,0.000227,2]
[402814801,1768918255508,-151.0,0.000227,2]
[402814802,1768918255517,-151.0,0.000227,2]
[402814803,1768918255527,-151.0,0.000227,2]
[402814804,1768918255536,-151.0,0.000227,2]
[402814805,1768918255545,-151.0,0.000227,2]
[402814806,1768918255555,-297.639578,0.000227,2]
[402814807,1768918255567,-155.948363,0.000227,2]
[402814808,1768918255576,-155.948363,0.000227,2]
[402814809,1768918255586,-155.948363,0.000227,2]
[402814810,1768918255595,-155.948354,0.000227,2]
[402814811,1768918255605,-151.0,0.000227,2]
[402814812,1768918255615,-151.0,0.000227,2]
[402814813,1768918255625,-573.268169,0.000227,2]
[402814814,1768918255636,-573.268169,0.000227,2]
[402814815,1768918255645,-573.268169,0.000227,2]
[402814816,1768918255654,-573.268176,0.000227,2]
[402814817,1768918255664,-151.542111,0.000227,2]
[402814818,1768918255673,-151.542111,0.000227,2]
[402814819,1768918255682,-151.542111,0.000227,2]
[402814820,1768918255692,-151.542118,0.000227,2]
[402814821,1768918255701,-648.072103,0.000227,2]
[402814822,1768918255711,-648.072103,0.000227,2]
[402814823,1768918255720,-648.072103,0.000227,2]
[402814824,1768918255730,-648.0721,0.000227,2]
[402814825,1768918255739,-159.22180346,0.00022756,110]
[402814826,1768918255749,-367.44709276,0.00022779,110]
[402814827,1768918255758,-304.96955809,0.00022779,110]
[402814828,1768918255767,-199.32395952,0.00022779,110]
[402814829,1768918255776,-300.0,0.00022807,2]
[402814830,1768918255785,-380.32,0.000229,3]
[402814831,1768918255794,-167.89,0.000229,7]
[402814832,1768918255803,-1300.0,0.00023,5]
[402814833,1768918255813,-1314.48,0.00023,15]
[402814834,1768918255822,-10000.0,0.00023,3]
[402814835,1768918255832,-1041.66666667,0.00023,3]
[402814836,1768918255841,-1041.66666667,0.00023,3]
[402814837,1768918255850,-184.0,0.00023,7]
[402814838,1768918255860,-1023.78834759,0.00023,2]
[402814839,1768918255870,-578.0,0.00023,7]
[402814840,1768918255879,-1041.66666667,0.00023,3]
[402814841,1768918255889,-450.0,0.00023014,2]
[402814842,1768918255899,-250.0,0.00023014,2]
[402814843,1768918255908,-500.0,0.000231,7]
[402814844,1768918255917,-12900.669189,0.00023112,2]
[402814845,1768918255927,-786.428054,0.00023182,30]
[402814846,1768918255937,-1410.12,0.000232,2]
[402814847,1768918255946,-578.8,0.000232,7]
[402814848,1768918255955,-7530.24,0.00023287,4]
[402814849,1768918255964,-578.0,0.00023288,7]
[402814850,1768918255974,-2000.0,0.0002329,7]
[402814851,1768918255983,-236.0,0.00023397,10]
[402814852,1768918255992,-221.87,0.000235,5]
[402814853,1768918256001,-600.0,0.00023562,2]
[402814854,1768918256010,-211.25627413,0.00023562,2]
[402814855,1768918256020,-2000.0,0.00023562,7]
[402814856,1768918256029,-6880.5344056,0.000237,30]
[402814857,1768918256038,-20000.0,0.000238,60]
[402814858,1768918256047,-335.24091361,0.000238,30]
[402814859,1768918256056,-578.8,0.000238,7]
[402814860,1768918256065,-349.28,0.000238,7]
[402814861,1768918256074,-7026.69,0.000238,14]
[402814862,1768918256082,-373.2,0.000238,7]
[402814863,1768918256091,-39601.47,0.000238,2]
[402814864,1768918256099,-167.89,0.000238,7]
[402814865,1768918256108,-2878.5283821,0.00023887,2]
[402814866,1768918256117,-2000.0,0.00023961,7]
[402814867,1768918256126,-1737.43172274,0.00024,2]
[402814868,1768918256135,-466.07574609,0.00024,2]
[402814869,1768918256144,-1041.66666667,0.00024,7]
[402814870,1768918256153,-35883.93337894,0.00024,2]
[402814871,1768918256162,-1000.0,0.00024,24]
[402814872,1768918256171,-300.04748869,0.00024,2]
[402814873,1768918256179,-7506.29296432,0.00024,60]
[402814874,1768918256189,-1021.0,0.00024,2]
[402814875,1768918256198,-153.0,0.0002403,2]
[402814876,1768918256207,-153.0,0.0002403,2]
[402814877,1768918256215,-153.0,0.0002403,2]
[402814878,1768918256224,-9903.14752856,0.00024078,2]
[402814879,1768918256233,-7819.16468405,0.00024098,2]
[402814880,1768918256243,-750.0,0.0002411,2]
[402814881,1768918256251,-432288.642476,0.00024142,2]
[402814882,1768918256260,-79867.284396,0.00024142,2]
[402814883,1768918256270,-151.0,0.00024142,2]
[402814884,1768918256281,-151.0,0.00024142,2]
[402814885,1768918256290,-167.961272,0.00024142,2]
[402814886,1768918256300,-151.0,0.00024142,2]
[402814887,1768918256309,-151.0,0.00024142,2]
[402814888,1768918256318,-151.0,0.00024142,2]
[402814889,1768918256328,-151.0,0.00024142,2]
[402814890,1768918256336,-151.0,0.00024142,2]
[402814891,1768918256345,-158.51156,0.00024142,2]
[402814892,1768918256354,-235.000096,0.00024142,2]
[402814893,1768918256363,-578.0,0.00024164,7]
[402814894,1768918256372,-1410.12,0.000242,2]
[402814895,1768918256381,-274.48,0.000242,5]
[402814896,1768918256390,-480.72,0.000243,2]
[402814897,1768918256399,-528.0,0.00024388,10]
[402814898,1768918256409,-216.8583,0.000244,2]
[402814899,1768918256418,-578.8,0.000244,7]
[402814900,1768918256427,-629.0,0.00024455,2]
[402814901,1768918256435,-178.0,0.00024455,2]
[402814902,1768918256444,-417.0,0.00024455,2]
[402814903,1768918256454,-237.0,0.00024493,13]
[402814904,1768918256462,-747.70896058,0.00024498,2]
[402814905,1768918256471,-1126.0,0.000245,5]
[402814906,1768918256480,-754.48,0.000245,6]
[402814907,1768918256489,-221.94,0.000245,6]
[402814908,1768918256499,-800.0,0.00024523,2]
[402814909,1768918256508,-2000.0,0.00024632,7]
[402814910,1768918256517,-105752.23651861,0.0002465,2]
[402814911,1768918256525,-51141.78969005,0.0002465,2]
[402814912,1768918256534,-514.43268855,0.0002465,2]
[402814913,1768918256543,-900.0,0.00024658,2]
[402814914,1768918256552,-380.0,0.00024658,2]
[402814915,1768918256565,-200.0,0.00024658,2]
[402814916,1768918256574,-208.96,0.000247,2]
[402814917,1768918256583,-329130.16553811,0.000247,2]
[402814918,1768918256592,-16839.28868662,0.00024774,2]
[402814919,1768918256601,-24838.2616362,0.000248,2]
[402814920,1768918256610,-800.0,0.00024816,2]
[402814921,1768918256619,-3978.61833062,0.000249,30]
[402814922,1768918256629,-641945.709568,0.000249,2]
[402814923,1768918256639,-800.0,0.00024907,2]
[402814924,1768918256648,-1212.884577,0.0002498,5]
[402814925,1768918256657,-303440.40637164,0.00025,15]
[402814926,1768918256667,-1086.60508339,0.00025,2]
[402814927,1768918256676,-2677.40379814,0.00025,2]
[402814928,1768918256685,-10364.0,0.00025,2]
[402814929,1768918256694,-500.0,0.00025,2]
[402814930,1768918256703,-94617.1630527,0.00025,8]
[402814931,1768918257207,-151.0,0.00014208,2]
[402814932,1768918257217,-199.0842972,0.00014208,2]
[402814933,1768918257496,-3e-08,0.00014208,2]
[402814934,1768918257552,-300.91570277,0.00014208,2]
[402814935,1768918257564,-151.0,0.00014208,2]
[402814936,1768918257573,-500.0,0.00014208,2]
[402814937,1768918257583,-151.0,0.00016438,2]
[402814938,1768918257591,-151.0,0.00016438,2]
[402814939,1768918257601,-151.0,0.00019317,2]
[402814940,1768918257610,-151.0,0.00019317,2]
[402814941,1768918257620,-151.0,0.0002,2]
[402814942,1768918257631,-151.0,0.0002,2]
[402814943,1768918257641,-151.0,0.00021,2]
[402814944,1768918257651,-151.0,0.000216,2]
[402814945,1768918257661,-4625.74855603,0.00025,8]
[402814946,1768918257678,-151.0,0.00014208,2]
[402814947,1768918257686,-65189.25516221,0.00025,8]
[402814948,1768918257828,-494.57928561,0.00014208,2]
[402814949,1768918257839,-5.42071439,0.00014208,2]
[402814950,1768918257849,-500.0,0.00014208,2]
[402814951,1768918257858,-500.0,0.00014208,2]
[402814952,1768918257867,-500.0,0.00014208,2]
[402814953,1768918257876,-500.0,0.00014208,2]
[402814954,1768918257886,-151.0,0.00016438,2]
[402814955,1768918257895,-151.0,0.00019317,2]
[402814956,1768918257904,-151.0,0.0002,2]
[402814957,1768918257914,-151.0,0.00021,2]
[402814958,1768918257923,-211.232288,0.00021,2]
[402814959,1768918257932,-151.0,0.000216,2]
[402814960,1768918257941,-4943.26994057,0.00025,8]
[402814961,1768918258013,-500.0,0.00014208,2]
[402814962,1768918258022,-500.0,0.00014208,2]
[402814963,1768918258031,-500.0,0.00014208,2]
[402814964,1768918258040,-528.0,0.00024058,10]
[402814965,1768918258049,-15051.91824949,0.00025,8]
[402814966,1768918258059,-1500.0,0.00025,2]
[402814967,1768918258068,-150.0,0.00025,2]
[402814968,1768918258076,-12075.58317696,0.00025,4]
[402814969,1768918258429,153.76,6.858e-05,2]
[402814970,1768918258468,192.2,7.143e-05,2]
[402814971,1768918258507,230.64,7.429e-05,2]
[402814972,1768918258807,-269.08,7.715e-05,2]
[402814976,1768918272477,-307.52,8.001e-05,2]
[402814977,1768918327623,171.53,7.458e-05,2]
[402814978,1768918328038,200.12,7.745e-05,2]
[402814979,1768918333502,-228.71,8.032e-05,2]
[402814980,1768918333526,-257.29,8.319e-05,2]
[402814981,1768918333549,-285.88,8.606e-05,2]
[402814982,1768918352720,500.0,0.00027397,120]
[402814983,1768918352945,505.02,0.00027397,120]
[402814985,1768918355031,500.0,0.00027397,120]
[402814986,1768918455927,500.0,0.00027397,120]
[402814987,1768918456172,500.0,0.00027397,120]
[402814988,1768918456439,500.0,0.00027397,120]
[402814989,1768918456681,500.0,0.00027397,120]
[402814990,1768918456945,500.0,0.00027397,120]
[402814991,1768918457202,500.0,0.00027397,120]
[402814992,1768918457456,500.0,0.00027397,120]
[402814993,1768918458587,500.0,0.00027397,120]
[402814994,1768918459186,406.48,0.00027397,120]
[402814995,1768918467484,1000.0,0.00027397,120]
[402814996,1768918493609,749.2,0.00027397,120]
[402814997,1768918493863,749.2,0.00027397,120]
[402814998,1768918494120,749.2,0.00027397,120]
[402814999,1768918494350,749.2,0.00027397,120]
[402815000,1768918494590,749.2,0.00027397,120]
[402815001,1768918494843,749.2,0.00027397,120]
[402815002,1768918495171,749.2,0.00027397,120]
[402815003,1768918495397,749.2,0.00027397,120]
[402815004,1768918495634,749.2,0.00027397,120]
[402815005,1768918495867,749.2,0.00027397,120]
[402815006,1768918496101,749.2,0.00027397,120]
[402815007,1768918496347,749.2,0.00027397,120]
[402815008,1768918496582,749.2,0.00027397,120]
[402815009,1768918496821,749.2,0.00027397,120]
[402815010,1768918497079,749.2,0.00027397,120]
[402815011,1768918497345,749.2,0.00027397,120]
[402815012,1768918497621,749.2,0.00027397,120]
[402815013,1768918497884,749.2,0.00027397,120]
[402815014,1768918498118,749.2,0.00027397,120]
[402815015,1768918498356,749.2,0.00027397,120]
[402815016,1768918498589,749.2,0.00027397,120]
[402815017,1768918498835,749.2,0.00027397,120]
[402815018,1768918499091,749.2,0.00027397,120]
[402815019,1768918499323,749.2,0.00027397,120]
[402815020,1768918535269,180.0,0.0002288,120]
[402815022,1768918590653,1000.0,0.00027397,120]
[402815023,1768918592840,1000.0,0.00027397,120]
[402815024,1768918597064,1000.0,0.00027397,120]
[402815025,1768918598120,1000.0,0.00027397,120]
[402815029,1768918783910,1000.0,0.00027397,120]
[402815030,1768918786532,1000.0,0.00027397,120]
[402815031,1768918786933,1000.0,0.00027397,120]
[402815032,1768918787235,1000.0,0.00027397,120]
[402815033,1768918787580,1000.0,0.00027397,120]
[402815034,1768918791898,1000.0,0.00027397,120]
[402815035,1768918792281,1000.0,0.00027397,120]
[402815037,1768918825847,500.0,0.00027397,120]
[402815038,1768918826069,500.0,0.00027397,120]
[402815039,1768918826300,500.0,0.00027397,120]
[402815040,1768918826551,500.0,0.00027397,120]
[402815041,1768918826816,500.0,0.00027397,120]
[402815042,1768918827046,500.0,0.00027397,120]
[402815043,1768918827275,500.0,0.00027397,120]
[402815044,1768918827503,500.0,0.00027397,120]
[402815045,1768918836583,1000.0,0.00027397,120]
[402815046,1768918837563,1000.0,0.00027397,120]
[402815047,1768918838523,1000.0,0.00027397,120]
[402815048,1768918855991,1000.0,0.00027397,120]
[402815049,1768918857434,1000.0,0.00027397,120]
[402815050,1768918858815,1000.0,0.00027397,120]
[402815051,1768918862302,1000.0,0.00027397,120]
[402815052,1768918863863,1000.0,0.00027397,120]
[402815053,1768918864432,1000.0,0.00027397,120]
[402815054,1768918865497,1000.0,0.00027397,120]
[402815055,1768918867490,1000.0,0.00027397,120]
[402815056,1768918871649,500.0,0.00027397,120]
[402815057,1768918872144,500.0,0.00027397,120]
[402815058,1768918872653,500.0,0.00027397,120]
[402815059,1768918872719,500.0,0.00027397,120]
[402815060,1768918873127,500.0,0.00027397,120]
[402815061,1768918873627,500.0,0.00027397,120]
[402815062,1768918874380,500.0,0.00027397,120]
[402815063,1768918874835,500.0,0.00027397,120]
[402815064,1768918875612,500.0,0.00027397,120]
[402815065,1768918876106,500.0,0.00027397,120]
[402815066,1768918876587,500.0,0.00027397,120]
[402815067,1768918877067,500.0,0.00027397,120]
[402815068,1768918877681,500.0,0.00027397,120]
[402815069,1768918877736,1000.0,0.00027397,120]
[402815070,1768918878192,500.0,0.00027397,120]
[402815071,1768918879515,500.0,0.00027397,120]
[402815072,1768918879988,500.0,0.00027397,120]
[402815073,1768918880514,500.0,0.00027397,120]
[402815074,1768918881508,1000.0,0.00027397,120]
[402815075,1768918886620,500.0,0.00027397,120]
[402815076,1768918887088,500.0,0.00027397,120]
[402815077,1768918887637,500.0,0.00027397,120]
[402815078,1768918888142,500.0,0.00027397,120]
[402815079,1768918888653,503.66196666,0.00027397,120]
[402815082,1768918960980,-555.0,9.647e-05,2]
[402815083,1768918961000,-269.16736688,9.696e-05,2]
[402815084,1768918961020,-175.83263312,9.841e-05,2]
[402815085,1768918962714,-70.98767297,9.841e-05,2]
[402815086,1768918962738,-500.0,9.841e-05,2]
[402815087,1768918962758,-429.01232703,9.841e-05,2]
[402815088,1768918963061,-70.98767297,9.841e-05,2]
[402815089,1768918963081,-500.0,9.841e-05,2]
[402815090,1768918963101,-429.01232703,9.841e-05,2]
[402815091,1768918963432,-70.98767297,9.841e-05,2]
[402815092,1768918963453,-500.0,9.841e-05,2]
[402815093,1768918963472,-429.01232703,9.841e-05,2]
[402815094,1768918963734,-70.98767297,9.841e-05,2]
[402815095,1768918963759,-500.0,9.841e-05,2]
[402815096,1768918963780,-429.01232703,9.841e-05,2]
[402815097,1768918964084,-70.98767297,9.841e-05,2]
[402815098,1768918964108,-539.21304336,9.841e-05,2]
[402815099,1768918964133,-389.79928367,9.841e-05,2]
[402815100,1768918964455,-110.20071633,9.841e-05,2]
[402815101,1768918964476,-500.0,9.841e-05,2]
[402815102,1768918964497,-389.79928367,9.841e-05,2]
[402815103,1768918964769,-110.20071633,9.841e-05,2]
[402815104,1768918964791,-500.0,9.841e-05,2]
[402815105,1768918964816,-389.79928367,9.841e-05,2]
[402815106,1768918965085,-110.20071633,9.841e-05,2]
[402815107,1768918965107,-500.0,9.841e-05,2]
[402815108,1768918965130,-318.88509233,9.841e-05,2]
[402815109,1768918965153,-70.91419134,9.841e-05,2]
[402815110,1768918965422,-429.08580866,9.841e-05,2]
[402815111,1768918965442,-500.0,9.841e-05,2]
[402815112,1768918965462,-70.91419134,9.841e-05,2]
[402815113,1768918965753,-429.08580866,9.841e-05,2]
[402815114,1768918965776,-500.0,9.841e-05,2]
[402815115,1768918965796,-70.91419134,9.841e-05,2]
[402815116,1768918966100,-429.08580866,9.841e-05,2]
[402815117,1768918966122,-500.0,9.841e-05,2]
[402815118,1768918966145,-70.91419134,9.841e-05,2]
[402815119,1768918966452,-429.08580866,9.841e-05,2]
[402815120,1768918966476,-500.0,9.841e-05,2]
[402815121,1768918966497,-70.91419134,9.841e-05,2]
[402815122,1768918971499,-429.08580866,9.841e-05,2]
[402815123,1768918971520,-500.0,9.841e-05,2]
[402815124,1768918971542,-70.91419134,9.841e-05,2]
[402815125,1768918971864,-429.08580866,9.841e-05,2]
[402815126,1768918971886,-202.94533838,9.841e-05,2]
[402815127,1768918971908,-367.96885296,9.841e-05,2]
[402815128,1768918972236,-132.03114704,9.841e-05,2]
[402815129,1768918972257,-500.0,9.841e-05,2]
[402815130,1768918972279,-367.96885296,9.841e-05,2]
[402815131,1768918972556,-132.03114704,9.841e-05,2]
[402815132,1768918972578,-500.0,9.841e-05,2]
[402815133,1768918972598,-367.96885296,9.841e-05,2]
[402815134,1768918973496,-132.03114704,9.841e-05,2]
[402815135,1768918973518,-500.0,9.841e-05,2]
[402815136,1768918973539,-367.96885296,9.841e-05,2]
[402815137,1768918973845,-132.03114704,9.841e-05,2]
[402815138,1768918973869,-500.0,9.841e-05,2]
[402815139,1768918973891,-367.96885296,9.841e-05,2]
[402815140,1768918974184,-132.03114704,9.841e-05,2]
[402815141,1768918974207,-440.44744968,9.841e-05,2]
[402815142,1768918974228,-427.52140328,9.841e-05,2]
[402815143,1768918974495,-72.47859672,9.841e-05,2]
[402815144,1768918974517,-500.0,9.841e-05,2]
[402815145,1768918974538,-427.52140328,9.841e-05,2]
[402815146,1768918975920,-72.47859672,9.841e-05,2]
[402815147,1768918975944,-500.0,9.841e-05,2]
[402815148,1768918975967,-427.52140328,9.841e-05,2]
[402815149,1768918977187,-72.47859672,9.841e-05,2]
[402815150,1768918977210,-500.0,9.841e-05,2]
[402815151,1768918977232,-427.52140328,9.841e-05,2]
[402815152,1768919007149,-72.47859672,9.841e-05,2]
[402815153,1768919007169,-500.0,9.841e-05,2]
[402815154,1768919007190,-427.52140328,9.841e-05,2]
[402815155,1768919008761,-72.47859672,9.841e-05,2]
[402815156,1768919008782,-500.0,9.841e-05,2]
[402815157,1768919008803,-427.52140328,9.841e-05,2]
[402815158,1768919010088,-72.47859672,9.841e-05,2]
[402815159,1768919010110,-500.0,9.841e-05,2]
[402815160,1768919010130,-250.84348962,9.841e-05,2]
[402815161,1768919010151,-176.67791366,9.842e-05,2]
[402815162,1768919011280,-459.39103674,9.842e-05,2]
[402815163,1768919011301,-340.57606643,9.842e-05,2]
[402815164,1768919011324,-200.03289683,9.844e-05,2]
[402815166,1768919040868,1000.0,0.00027397,120]
[402815167,1768919041706,1000.0,0.00027397,120]
[402815168,1768919042456,1000.0,0.00027397,120]
[402815169,1768919043238,1000.0,0.00027397,120]
[402815170,1768919044980,1000.0,0.00027397,120]
[402815171,1768919070771,1204.04204983,0.0002739,120]
[402815173,1768919242457,1000.0,0.0001,10]
[402815174,1768919242484,1000.0,0.0001,10]
[402815175,1768919242510,1000.0,0.0001,10]
[402815178,1768919327733,151.0,0.000273,120]
[402815180,1768919363963,246.62,6.73e-05,2]
[402815181,1768919364374,369.94,7.036e-05,2]
[402815182,1768919364834,493.25,7.342e-05,2]
[402815183,1768919365508,616.56,7.648e-05,2]
[402815184,1768919366263,739.87,7.954e-05,2]
[402815185,1768919366720,863.19,8.26e-05,2]
[402815186,1768919367206,986.5,8.566e-05,2]
[402815187,1768919368293,1109.81,8.872e-05,2]
[402815201,1768919431942,-306.26,9.178e-05,2]
[402815424,1768919437919,-926.86,9.178e-05,2]
[402815426,1768919437928,-2470.10133549,9.744e-05,2]
[402815429,1768919437949,-6104.29135789,9.744e-05,2]
[402815433,1768919437990,-482.24165179,9.744e-05,2]
[402815436,1768919438007,-990943.36565483,9.744e-05,2]
[402815438,1768919438019,-1668.94597886,9.843e-05,2]
[402815440,1768919438029,-50000.0,9.843e-05,2]
[402815442,1768919438042,-238.4032465,9.843e-05,2]
[402815444,1768919438052,-445.24826528,9.843e-05,2]
[402815446,1768919438063,-646.54278804,9.843e-05,2]
[402815448,1768919438073,-305.64927663,9.843e-05,2]
[402815450,1768919438083,-244.77170426,9.843e-05,2]
[402815452,1768919438093,-493.38304997,9.843e-05,2]
[402815454,1768919438104,-500.0,9.843e-05,2]
[402815456,1768919438114,-173.8144682,9.843e-05,2]
[402815458,1768919438124,-1040.126,0.0001,10]
[402815460,1768919438135,-1929.72522225,0.0001,2]
[402815462,1768919438145,-289.38538929,0.0001,2]
[402815464,1768919438155,-302.41820516,0.0001,7]
[402815466,1768919438165,-1000.0,0.0001,2]
[402815468,1768919438175,-16845.33272611,0.0001,2]
[402815470,1768919438185,-532.7685682,0.0001,2]
[402815472,1768919438195,-17715.0363094,0.00010259,2]
[402815474,1768919438205,-263.78401955,0.0001072,2]
[402815476,1768919438216,-151.0,0.000111,2]